Cogmind - Beta 16.1 @@@ ROGUE MODE // 2026.02.16 @ 13:44:58 Player: Megaknight51 Result: Destroyed by Y-64 Sentinel with Wave Gun Performance ------------- Evolutions (5) 2500 Regions Visited (13) 2600 Robots Destroyed (176) 880 Value Destroyed (6293) 6293 Prototype IDs (4) 80 Alien Tech Used (0) 0 Bonus (1125) 1125 TOTAL SCORE: 13478 Bonus ------- High Alert Combat Kills 286 Follower Combat Kills 139 Entered Garrisons 200 Used RIF Installer 500 Cogmind --------- Core Integrity 0/1000 Matter 300/300 Energy 98/100 System Corruption 41% Temperature Cool (9) Movement Core (50) Location -5/Upper Caves Parts ------- > --- POWER (3) -------- (None) > --- PROPULSION (4) --- (None) > --- UTILITY (6) ------ Improved Signal Interpreter > --- WEAPON (4) ------- (None) > --- INVENTORY (5) ---- Hardened Heavy Armor Plating Improved Thermal Shield Plasma Cutter Heavy Flail Peak State ------------ > --- POWER ------------ Improved Deuterium Engine Light Fission Core Light Antimatter Reactor > --- PROPULSION ------- Armored Huge Wheel Armored Huge Wheel > --- UTILITY ---------- Advanced Heat Sink Improved Cooling System Huge Storage Unit Improved Target Analyzer Layered Medium Armor Plating Advanced Shield Generator > --- WEAPON ----------- High-powered Shock Rifle Tesla Rifle Tesla Rifle Improved Arc Projector > --- INVENTORY -------- Light Deuterium Engine Micro Fission Core Power Amplifier Improved Heat Sink Improved Heat Sink Advanced Heat Sink Enhanced Optical Array Improved Signal Interpreter Improved Terrain Scanner Improved Target Analyzer Transmission Jammer Heavy Armor Plating Hardened Heavy Armor Plating Improved Medium Armor Plating Layered Medium Armor Plating Focal Shield Improved Thermal Shield EM Shield Shock Rifle Improved Remote Datajack Plasma Cutter Heavy Mace [Rating: 90] Favorites ----------- Power Heavy Ion Engine Engine Heavy Ion Engine Power Core Light Fission Core Reactor Light Antimatter Reactor Propulsion Wheel Treads Improved Heavy Treads Wheel Wheel Utility Huge Storage Unit Device Improved Heat Sink Storage Huge Storage Unit Processor Improved Signal Interpreter Protection Hardened Medium Armor Plating Weapon Improved EM Pulse Cannon Energy Gun Beam Rifle Energy Cannon Improved EM Pulse Cannon Ballistic Gun Heavy Assault Rifle Launcher Heavy Rocket Launcher Special Weapon Improved Remote Datajack Impact Weapon Heavy Hammer Special Melee Weapon Datajack Build | -11 -10 -10 -9 -9 -9 -8 -8 -7 -6 -6 -5 -5 -5 ------- Run | Yrd Mat Min Mat Min Exi Min Mat Fac Fac Gar Fac Upp Upp Slots Evolved 10 | . . . 2 . . . 2 2 2 . 2 . . Power 2 | . . . . . . . 1 . 1 . . . . Propulsion 2 | . . . . . . . . . . . 2 . . Utility 4 | . . . . . . . 1 2 1 . . . . Weapon 2 | . . . 2 . . . . . . . . . . Parts Attached 130 | 7 7 2 20 6 . 8 21 15 5 6 29 4 . Power 20 | 1 2 . 3 . . 1 4 1 3 . 5 . . Engine 12 | 1 2 . 2 . . 1 3 1 . . 2 . . Core 7 | . . . 1 . . . 1 . 3 . 2 . . Reactor 1 | . . . . . . . . . . . 1 . . Propulsion 17 | 2 1 1 3 2 . 2 2 . . 2 2 . . Treads 1 | . . . . . . . . . . 1 . . . Leg . | . . . . . . . . . . . . . . Wheel 16 | 2 1 1 3 2 . 2 2 . . 1 2 . . Hover . | . . . . . . . . . . . . . . Flight . | . . . . . . . . . . . . . . Utility 39 | 2 2 1 1 . . 3 5 8 1 1 13 2 . Device 20 | 1 . . 1 . . 3 . 5 . 1 7 2 . Storage 4 | 1 1 1 . . . . 1 . . . . . . Processor 4 | . 1 . . . . . . 1 . . 2 . . Hackware . | . . . . . . . . . . . . . . Protection 11 | . . . . . . . 4 2 1 . 4 . . Artifact . | . . . . . . . . . . . . . . Weapon 54 | 2 2 . 13 4 . 2 10 6 1 3 9 2 . Energy Gun 29 | 1 . . 9 2 . 2 2 1 1 2 7 2 . Energy Cannon 10 | . . . 1 . . . 5 2 . 1 1 . . Ballistic Gun 8 | 1 . . 3 1 . . 3 . . . . . . Ballistic Cannon . | . . . . . . . . . . . . . . Launcher 3 | . . . . 1 . . . 2 . . . . . Special Weapon 1 | . . . . . . . . . . . 1 . . Impact Weapon 2 | . 1 . . . . . . 1 . . . . . Slashing Weapon . | . . . . . . . . . . . . . . Piercing Weapon . | . . . . . . . . . . . . . . Special Melee Weapon 1 | . 1 . . . . . . . . . . . . Unidentified Prototypes 3 | . . . 3 . . . . . . . . . . Corrupted Parts 8 | . . . . . . . . 1 . 3 4 . . System Corruption 45 | . . . . . . . . 4 . 18 23 . . Parts Lost 54 | . . 1 8 5 . . 5 2 . 2 28 1 2 Power 9 | . . . 1 . . . 1 . . . 7 . . Propulsion 10 | . . 1 3 2 . . 1 . . . 3 . . Utility 10 | . . . . . . . . 1 . . 6 1 2 Weapon 25 | . . . 4 3 . . 3 1 . 2 12 . . Highest Loss Streak 8 | . . 1 6 3 . . 2 1 . 1 8 1 2 To Critical Strikes 1 | . . . 1 . . . . . . . . . . Average Backups 18 | 2 8 13 18 19 20 20 20 20 18 20 20 4 4 Power 1 | . . 1 3 2 2 2 1 3 2 2 2 . . Propulsion 2 | . 2 3 3 4 5 5 4 2 2 2 . . . Utility 7 | . 1 5 6 9 9 9 7 6 8 8 11 2 2 Weapon 3 | . 2 2 3 2 2 2 5 5 4 6 3 . 1 Tool/Special . | . . . . . . . . . . . . . . Unused Backups 45 | . 4 . 5 1 . . 12 5 . 1 13 . 4 Power 4 | . . . 3 . . . . . . . 1 . . Propulsion 9 | . 2 . 1 1 . . 4 1 . . . . . Utility 21 | . . . 1 . . . 6 1 . 1 10 . 2 Weapon 7 | . 2 . . . . . 2 1 . . 1 . 1 Tool/Special 4 | . . . . . . . . 2 . . 1 . 1 Average Slot Usage (%) 90 | . 100 99 92 98 100 100 93 91 92 92 84 23 17 Engine 10 | . 14 14 9 11 11 11 13 15 11 6 4 . . Core 3 | . . . . . . . 4 . 7 13 9 . . Wheel 13 | . 28 27 17 21 22 22 12 7 6 3 9 . . Device 12 | . 14 . 8 11 11 11 9 15 20 20 15 11 11 Storage 8 | . 14 14 11 11 11 11 9 7 6 6 4 . . Processor 2 | . . 14 2 . . . . . 6 6 6 5 5 Protection 4 | . . . . . . . 8 14 5 6 4 . . Energy Gun 11 | . 14 14 31 17 22 22 6 1 1 4 8 4 . Energy Cannon 8 | . . . . . . . 18 22 10 12 9 . . Ballistic Gun 8 | . 11 13 5 21 22 22 11 4 . . . . . Launcher 1 | . . . . . . . . 1 13 6 2 . . Impact Weapon 1 | . 2 . 2 4 . . . . . 1 . . . Peak Build Rating 90 | 7 9 9 22 22 20 23 46 52 59 68 90 36 14 Average Rating 37 | 5 8 8 17 19 20 21 37 50 54 62 71 22 13 On Entrance 25 | . 7 9 9 22 20 20 23 45 49 59 58 15 14 Avg Prop Armor Cover (%) . | . . . . . . . . . . . . . . Naked Turns . | . . . . . . . . . . . . . . Heaviest Build 147 | 15 31 49 61 61 61 61 130 140 141 142 147 29 2 Greatest Support 75 | 32 32 26 32 26 20 20 28 28 28 75 56 3 3 Greatest Overweight (x) 44 | . 1 1 4 6 3 3 7 4 5 44 30 9 . Average Overweight (x) 2 | . . 1 2 2 3 2 4 4 4 3 2 . . Largest Inventory Capacity 25 | 8 15 20 20 20 20 20 25 25 25 25 25 5 5 Average Capacity 20 | 7 8 16 20 20 20 20 23 25 25 25 24 5 5 Most Carried 25 | 6 12 15 20 20 20 20 25 25 25 25 25 5 5 Average Carried 19 | 2 8 14 18 19 20 19 22 24 22 24 23 4 5 Final Capacity 25 | 8 15 20 20 20 20 20 25 25 25 25 5 5 5 Final Carried 25 | 6 12 14 20 20 20 20 25 24 25 24 5 5 5 Class Distribution -------------------- 39% | Tank 24% | Scavenger-Gunner 16% | Mutant 12% | Scavenger-Tank 5% | Gunner Dominant Class ---------------- Mutant | -10/Materials Mutant | -10/Mines Scavenger-Gunner | -9/Materials Scavenger-Gunner | -9/Mines Scavenger-Gunner | -9/Exiles Scavenger-Gunner | -8/Mines Tank | -8/Materials Tank | -7/Factory Tank | -6/Factory Tank | -6/Garrison Tank | -5/Factory Mutant | -5/Upper Caves Mutant | -5/Upper Caves Resources | -11 -10 -10 -9 -9 -9 -8 -8 -7 -6 -6 -5 -5 -5 ----------- Run | Yrd Mat Min Mat Min Exi Min Mat Fac Fac Gar Fac Upp Upp Matter Collected 3803 | 303 130 121 337 318 . 261 631 272 . 612 703 113 2 Remotely . | . . . . . . . . . . . . . . Salvage Created 7846 | 122 312 126 1432 426 . 390 1631 431 . 1321 1655 . . Parts 406 | 7 19 5 90 29 . 24 89 32 . 41 70 . . Haulers Intercepted 6 | . . . 3 . . . 2 . . . 1 . . Recyclers Shooed 6 | . 1 . 1 1 . 1 . . . . 2 . . Parts Field Recycled . | . . . . . . . . . . . . . . Retrieved Matter . | . . . . . . . . . . . . . . Parts Self-Destructed . | . . . . . . . . . . . . . . Prevented . | . . . . . . . . . . . . . . Parts Restored . | . . . . . . . . . . . . . . Kills | -11 -10 -10 -9 -9 -9 -8 -8 -7 -6 -6 -5 -5 -5 ------- Run | Yrd Mat Min Mat Min Exi Min Mat Fac Fac Gar Fac Upp Upp Combat Hostiles Destroyed 131 | . 8 3 26 7 . 11 30 8 . 15 23 . . Guns 69 | . 8 3 20 6 . 11 18 . . . 3 . . Cannons 24 | . . . 6 . . . 8 3 . 2 5 . . AOE 31 | . . . . 1 . . 3 4 . 13 10 . . Classes Destroyed 17 | 2 4 . 5 1 . 1 . 2 . 1 1 . . Worker 9 | . . . 1 2 . 2 1 2 . . 1 . . Builder 7 | . 1 . 1 1 . . 1 1 . . 2 . . Tunneler 6 | 3 . . . 2 . . . . . . 1 . . Hauler 7 | . . . 3 . . . 2 . . . 2 . . Recycler 8 | 1 . . 1 1 . . 4 . . . 1 . . Carrier 1 | . . . . . . . . . . . 1 . . Mechanic 2 | . . . 1 . . . . . . . 1 . . Operator 2 | . . . . . . . . 2 . . . . . Watcher 3 | . 1 . 1 . . . . . . . 1 . . Swarmer 31 | . 3 . 3 1 . 4 10 . . 7 3 . . Grunt 57 | . 5 3 13 3 . 6 8 5 . 4 10 . . Brawler 3 | . . . 1 . . . 2 . . . . . . Duelist 3 | . . . . 1 . . 1 . . 1 . . . Sentry 19 | . . . 9 2 . . 7 1 . . . . . Specialist 2 | . . . . . . . . . . 2 . . . Hunter 8 | . . . . . . 1 2 . . 1 4 . . Programmer 8 | . . . . . . . . 2 . . 6 . . Best Kill Streak 8 | 3 5 2 8 5 . 4 7 4 . 6 7 . . Combat Bots Only 8 | . 5 2 8 3 . 4 5 3 . 6 5 . . Max Kills in Single Turn 4 | 1 1 1 3 3 . 2 2 3 . 4 2 . . Gunslinging 1 | . . . . . . 1 . . . . . . . Exploded 4 | . . . . 1 . . 1 3 . 4 2 . . Melee . | . . . . . . . . . . . . . . Uniques/NPCs Destroyed . | . . . . . . . . . . . . . . Combat | -11 -10 -10 -9 -9 -9 -8 -8 -7 -6 -6 -5 -5 -5 -------- Run | Yrd Mat Min Mat Min Exi Min Mat Fac Fac Gar Fac Upp Upp Hostile Shots Fired 700 | . 34 14 92 42 . 26 97 57 . 46 252 26 14 Missed 192 | . 5 2 19 13 . 6 24 16 . 14 81 7 5 Hits 508 | . 29 12 73 29 . 20 73 41 . 32 171 19 9 Melee 11 | . . . 2 2 . . 6 . . . . 1 . Projectile 497 | . 29 12 71 27 . 20 67 41 . 32 171 18 9 Critical Strikes 26 | . 1 . 4 2 . 2 3 2 . . 10 2 . Part Disruptions 3 | . . . . . . . 1 . . . 2 . . Damage Taken 8965 | . 326 151 972 504 . 327 1346 674 . 605 3461 424 175 Core 1923 | . 103 28 202 91 . 72 251 100 . 59 555 369 93 Absorbed by Shields 840 | . . . . . . . . 46 . 223 571 . . Ignored by Resistances 164 | . . . . . . . . . . . 160 4 . Regen/Repaired (Parts) 143 | . . . . . . . . . . . 143 . . Core Remaining (%) 64 | 100 . 47 . . . 8 54 85 . 93 . . . Volleys Fired 335 | 11 32 11 60 28 . 20 62 19 . 17 74 1 . Largest 4 | 2 2 2 4 4 . 4 4 4 . 4 4 2 . Hottest 270 | 70 70 70 185 158 . 174 229 256 . 257 270 176 . Shots Fired 1041 | 22 64 21 184 80 . 81 235 66 . 42 244 2 . Gun 735 | 22 64 21 165 77 . 81 159 16 . 1 127 2 . Cannon 253 | . . . 19 . . . 76 46 . 15 97 . . Launcher 53 | . . . . 3 . . . 4 . 26 20 . . Special . | . . . . . . . . . . . . . . Kinetic 261 | 11 32 11 37 47 . 41 71 11 . . . . . Thermal 273 | 11 32 10 127 26 . 40 25 . . . . 2 . Explosive 53 | . . . . 3 . . . 4 . 26 20 . . Electromagnetic 454 | . . . 20 4 . . 139 51 . 16 224 . . Robot Hit Streak 20 | 4 13 7 20 9 . 10 13 7 . 6 8 2 . Robot Miss Streak 5 | 5 3 2 5 4 . 2 4 4 . 2 5 . . Penetration Max 1 | . . . . . . . 1 . . . . . . Secondary Targets 8 | . . 1 2 2 . 3 . . . . . . . Max Gunslinging Chain 1 | . . 1 1 1 . 1 . . . . . . . Shots Hit Robots 665 | 12 49 15 120 52 . 50 136 37 . 54 139 1 . Core Hits 344 | 5 18 7 57 20 . 28 63 18 . 30 98 . . Critical Kills 1 | . 1 . . . . . . . . . . . . Critical Parts Destroyed 4 | . . . . 1 . . 1 . . 2 . . . Critical Strikes 25 | 1 4 1 5 2 . 2 4 1 . 2 3 . . Burn 15 | 1 3 1 5 1 . 2 2 . . . . . . Destroy 3 | . 1 . . 1 . . 1 . . . . . . Corrupt 5 | . . . . . . . 1 1 . . 3 . . Smash 2 | . . . . . . . . . . 2 . . . Melee Attacks 64 | . 5 1 3 . . . . 3 . 36 16 . . Impact 59 | . 2 . 2 . . . . 3 . 36 16 . . Slashing . | . . . . . . . . . . . . . . Piercing . | . . . . . . . . . . . . . . Sneak Attacks 6 | . 3 1 1 . . . . . . . 1 . . Combat Hostiles . | . . . . . . . . . . . . . . Follow-up Attacks . | . . . . . . . . . . . . . . Damage Inflicted 17491 | 155 606 180 1870 934 . 781 3275 1180 . 4157 4326 27 . Guns 6811 | 155 606 180 1543 775 . 781 1755 56 . 17 916 27 . Cannons 3086 | . . . 215 . . . 1030 595 . 221 1025 . . Explosions 5042 | . . . 111 159 . . 490 529 . 1443 2310 . . Melee 2551 | . . . . . . . . . . 2476 75 . . Ramming 1 | . . . 1 . . . . . . . . . . Kinetic 2471 | 67 276 86 318 510 . 361 815 38 . . . . . Thermal 3674 | 88 330 94 1263 208 . 420 741 113 . . 390 27 . Explosive 3407 | . . . . 159 . . . 416 . 1443 1389 . . Electromagnetic 5387 | . . . 288 57 . . 1719 613 . 238 2472 . . Impact 2551 | . . . . . . . . . . 2476 75 . . Slashing . | . . . . . . . . . . . . . . Piercing . | . . . . . . . . . . . . . . Highest Corruption 41 | . . . 4 4 4 4 2 7 . 18 41 41 41 Average Corruption 8 | . . . 4 4 4 4 2 4 . 11 19 41 41 Corruption Purged . | . . . . . . . . . . . . . . Corruption Blocked . | . . . . . . . . . . . . . . Effects 217 | . . . 20 25 10 15 25 12 . 29 53 23 5 Message Errors 54 | . . . 5 7 3 2 3 4 . 9 15 6 . Matter Fused 38 | . . . 1 7 2 2 8 4 . 4 7 3 . Heat Flow Errors 24 | . . . 2 . 1 5 3 1 . 1 7 4 . Energy Discharges 29 | . . . 5 5 2 2 4 . . 5 5 1 . Parts Rejected 4 | . . . . . . . . . . 1 2 1 . Parts Fused 5 | . . . 2 . . . . . . 2 1 . . Data Loss (minor) 28 | . . . 3 3 2 . 2 1 . 3 6 6 2 Data Loss (major) 6 | . . . . 1 . 1 1 1 . 1 1 . . Misfires 12 | . . . 1 1 . 2 2 1 . 2 2 1 . Alerts 3 | . . . 1 . . . . . . . 2 . . Misdirections 3 | . . . . . . . . . . . . . 3 Weapon Failures 11 | . . . . 1 . 1 2 . . 1 5 1 . Overload Shots . | . . . . . . . . . . . . . . Overflow Damage 655 | . . . . . . . 104 34 . 499 18 . . Projectiles 71 | . . . . . . . 19 34 . . 18 . . Explosions 118 | . . . . . . . 85 . . 33 . . . Melee 466 | . . . . . . . . . . 466 . . . Knockbacks 8 | . . . . . . . . . . 8 . . . Impact 7 | . . . . . . . . . . 7 . . . Kinetic . | . . . . . . . . . . . . . . Secondary 1 | . . . . . . . . . . 1 . . . Self-Inflicted Damage 822 | . . . 28 69 . . 223 125 . 313 64 . . Shots 17 | . . . 1 2 . . 5 2 . 5 2 . . Rammed 1 | . . . 1 . . . . . . . . . . Targets Rammed 1 | . . . 1 . . . . . . . . . . Kicked . | . . . . . . . . . . . . . . Crushed . | . . . . . . . . . . . . . . Highest Temperature 585 | 54 278 90 240 60 202 306 585 462 . 197 399 244 . Average Temperature 106 | 20 85 38 70 23 112 112 149 179 . 87 97 98 . Received Heat Transfer 1958 | . 162 84 429 216 . 189 342 159 . 66 185 63 63 Effects 26 | . . . . . . 2 10 12 . . 2 . . Shutdowns 8 | . . . . . . . 3 3 . . 2 . . Energy Bleed 4 | . . . . . . 2 . 2 . . . . . Interference 5 | . . . . . . . 3 2 . . . . . Matter Decay 2 | . . . . . . . 2 . . . . . . Short Circuit 3 | . . . . . . . . 3 . . . . . Damage (minor) 1 | . . . . . . . 1 . . . . . . Damage (major) 2 | . . . . . . . . 2 . . . . . Damage (core) 1 | . . . . . . . 1 . . . . . . Siege Activations . | . . . . . . . . . . . . . . Martial Activations . | . . . . . . . . . . . . . . Shielding Activations . | . . . . . . . . . . . . . . Robots Disrupted 5 | . . . . . . . 1 . . . 4 . . Combat Hostiles 4 | . . . . . . . 1 . . . 3 . . Robots Corrupted 18 | . . . . . . . 1 1 . 8 8 . . Combat Hostiles 7 | . . . . . . . 1 1 . . 5 . . Parts Fried 36 | . . . 2 . . . 4 4 . 12 14 . . Impact Corruptions 14 | . . . . . . . . . . 14 . . . Robots Melted . | . . . . . . . . . . . . . . Combat Hostiles . | . . . . . . . . . . . . . . Parts Melted 7 | 1 1 1 3 1 . . . . . . . . . Heat Transferred 8372 | 333 1147 333 3132 592 . 1147 1251 150 . . 250 37 . Parts Sabotaged . | . . . . . . . . . . . . . . Parts Stolen . | . . . . . . . . . . . . . . Parts Stripped . | . . . . . . . . . . . . . . Power Chain Reactions 10 | . . . 1 1 . . 5 . . . 3 . . Alert | -11 -10 -10 -9 -9 -9 -8 -8 -7 -6 -6 -5 -5 -5 ------- Run | Yrd Mat Min Mat Min Exi Min Mat Fac Fac Gar Fac Upp Upp Maximum Alert Level 3 | . . . 1 . . . 2 1 . 3 3 . . Low Security (%) 59 | 100 100 100 90 100 . 100 29 92 100 40 8 . . Level 1 26 | . . . 9 . . . 67 7 . 7 42 . . Level 2 11 | . . . . . . . 3 . . 30 43 . . Level 3 2 | . . . . . . . . . . 21 5 . . Level 4 . | . . . . . . . . . . . . . . Level 5 . | . . . . . . . . . . . . . . High Security . | . . . . . . . . . . . . . . Max Security . | . . . . . . . . . . . . . . Peak Influence 729 | 5 162 79 298 154 . 115 442 275 122 701 729 . . Initial 367 | . . 39 5 114 . . 9 198 122 53 367 . . Average 198 | 1 48 24 105 85 . 50 238 83 95 373 415 . . Influence Increases 5455 | 20 282 85 835 384 . 312 1104 522 14 668 1079 135 15 Destroy 0b10 Robot/C 2760 | . 160 60 520 200 . 220 600 220 . 300 480 . . Destroy 0b10 Robot/NC 260 | 20 10 . 40 30 . 10 40 25 . 45 40 . . Destroy Leader 618 | . 32 10 148 30 . 40 174 50 . 30 104 . . Allied During Kill 27 | . . . . 14 . 5 . 8 . . . . . Successful Hack 166 | . 18 . 28 . . 7 77 5 14 . 17 . . Select Force Hacks 90 | . 30 . . . . . 30 30 . . . . . Disable Machine 495 | . 15 . 15 . . 30 105 120 . 15 195 . . Anti-Garrison Action 100 | . . . . . . . . . . 100 . . . Destroy Structure 519 | . 2 . 9 20 . . 48 49 . 163 228 . . Partial Spotted 15 | . . . . . . . 15 . . . . . . Lose Combat Pursuer 405 | . 15 15 75 90 . . 15 15 . 15 15 135 15 Influence Decreases 5301 | 20 181 171 556 642 36 288 692 707 189 43 1232 448 96 Entered New Map 1277 | . . 62 10 180 36 . 15 238 129 23 334 204 46 Time Decay 3424 | 20 181 109 476 392 . 268 627 429 60 . 618 214 30 Lost Part 520 | . . . 70 50 . . 50 20 . 20 280 10 20 Lost Ally 80 | . . . . 20 . 20 . 20 . . . 20 . Squads Dispatched 32 | . 2 . 1 . . . 9 5 . . 15 . . Investigation 9 | . 1 . . . . . 4 2 . . 2 . . Extermination 6 | . . . . . . . . 2 . . 4 . . Reinforcement 13 | . 1 . 1 . . . 2 1 . . 8 . . Assault 1 | . . . . . . . . . . . 1 . . Garrison 3 | . . . . . . . 3 . . . . . . Intercept . | . . . . . . . . . . . . . . Searches Triggered . | . . . . . . . . . . . . . . Construction Impeded 3 | . . . . . . . . . . . 3 . . Haulers Reinforced 2 | . . . . . . . . . . . 2 . . Active Scanning Responses . | . . . . . . . . . . . . . . Cargo Convoy Interrupts 1 | . . . . . . . . . . . 1 . . Stealth | -11 -10 -10 -9 -9 -9 -8 -8 -7 -6 -6 -5 -5 -5 --------- Run | Yrd Mat Min Mat Min Exi Min Mat Fac Fac Gar Fac Upp Upp Distress Signals 10 | . 2 . 8 . . . . . . . . . . Communications Jammed . | . . . . . . . . . . . . . . Distress Signals . | . . . . . . . . . . . . . . Times Spotted 220 | . 14 4 45 15 . 11 45 15 . 18 37 9 7 Peak Tracking Total 9 | . 3 2 9 4 . 4 6 4 . 6 6 6 6 Tactical Retreats 20 | . 1 1 4 3 . . 1 1 . 1 1 6 1 Traps | -11 -10 -10 -9 -9 -9 -8 -8 -7 -6 -6 -5 -5 -5 ------- Run | Yrd Mat Min Mat Min Exi Min Mat Fac Fac Gar Fac Upp Upp Traps Triggered 11 | . . . 1 . . . 2 1 . 5 1 1 . Indirectly . | . . . . . . . . . . . . . . Trap Hack Attempts . | . . . . . . . . . . . . . . Triggered . | . . . . . . . . . . . . . . Disarmed . | . . . . . . . . . . . . . . Reprogrammed . | . . . . . . . . . . . . . . Reused . | . . . . . . . . . . . . . . Traps Extracted . | . . . . . . . . . . . . . . Installed . | . . . . . . . . . . . . . . Triggered . | . . . . . . . . . . . . . . Machines | -11 -10 -10 -9 -9 -9 -8 -8 -7 -6 -6 -5 -5 -5 ---------- Run | Yrd Mat Min Mat Min Exi Min Mat Fac Fac Gar Fac Upp Upp Machines Disabled 37 | . 1 . 1 . . 2 7 8 . 4 13 1 . Max in Single Turn 5 | . 1 . 1 . . 1 3 5 . 2 3 1 . Garrison Relay 1 | . . . . . . . . . . 1 . . . Phase Generator 1 | . . . . . . . . . . 1 . . . Machines Repaired . | . . . . . . . . . . . . . . Machines Dismantled . | . . . . . . . . . . . . . . Machines Sabotaged . | . . . . . . . . . . . . . . Overloaded Fab Kills . | . . . . . . . . . . . . . . Hacking | -11 -10 -10 -9 -9 -9 -8 -8 -7 -6 -6 -5 -5 -5 --------- Run | Yrd Mat Min Mat Min Exi Min Mat Fac Fac Gar Fac Upp Upp Machines Accessed 31 | . 3 . 5 . . 1 11 3 1 1 5 1 . Terminals 19 | . 2 . 4 . . 1 8 1 . 1 2 . . Fabricators 1 | . . . . . . . . . . . 1 . . Repair Stations 2 | . . . . . . . . . . . 2 . . Recycling Units 4 | . 1 . . . . . 1 2 . . . . . Scanalyzers 2 | . . . 1 . . . 1 . . . . . . Garrison Access 2 | . . . . . . . 1 . 1 . . . . Total Hacks 79 | . 9 . 14 . . 2 27 5 1 1 19 1 . Successful 40 | . 4 . 5 . . 1 17 2 1 . 9 1 . Failed 38 | . 5 . 8 . . 1 10 3 . 1 10 . . Catastrophic 7 | . 1 . 1 . . . 1 1 . . 3 . . Database Lockouts 1 | . . . 1 . . . . . . . . . . Manual 41 | . 8 . 4 . . 2 15 6 . . 6 . . Terminals 47 | . 7 . 11 . . 2 18 2 . 1 6 . . Fabricators 2 | . . . . . . . . . . . 2 . . Repair Stations 11 | . . . . . . . . . . . 11 . . Recycling Units 7 | . 2 . . . . . 2 3 . . . . . Scanalyzers 7 | . . . 3 . . . 4 . . . . . . Garrison Access 4 | . . . . . . . 3 . 1 . . . . Terminal Hacks 18 | . 3 . 4 . . 1 8 . . . 1 1 . Part Schematic 3 | . . . . . . 1 2 . . . . . . Robot Analysis 5 | . 2 . 2 . . . 1 . . . . . . Prototype ID Bank 1 | . . . . . . . 1 . . . . . . Open Door 1 | . . . . . . . . . . . . 1 . Branch Access Points 2 | . . . . . . . 1 . . . 1 . . Terminal Index 1 | . 1 . . . . . . . . . . . . Recycling Unit Index 1 | . . . . . . . 1 . . . . . . Hauler Manifests 2 | . . . 1 . . . 1 . . . . . . Registered Components 1 | . . . 1 . . . . . . . . . . Zone Layout 1 | . . . . . . . 1 . . . . . . Fabricator Hacks 2 | . . . . . . . . . . . 2 . . Network Status 1 | . . . . . . . . . . . 1 . . Build 1 | . . . . . . . . . . . 1 . . Repair Station Hacks 6 | . . . . . . . . . . . 6 . . Scan Component 3 | . . . . . . . . . . . 3 . . Repair 3 | . . . . . . . . . . . 3 . . Recycling Unit Hacks . | . . . . . . . . . . . . . . Scanalyzer 5 | . . . 1 . . . 4 . . . . . . Retrieve Study 5 | . . . 1 . . . 4 . . . . . . Garrison Access Hacks 1 | . . . . . . . . . 1 . . . . Unlock Access 1 | . . . . . . . . . 1 . . . . Unauthorized Hacks 8 | . 1 . . . . . 5 2 . . . . . Terminals 5 | . . . . . . . 4 1 . . . . . Botnet 5 | . . . . . . . 4 1 . . . . . Fabricators . | . . . . . . . . . . . . . . Repair Stations . | . . . . . . . . . . . . . . Recycling Units 3 | . 1 . . . . . 1 1 . . . . . Tunnel 3 | . 1 . . . . . 1 1 . . . . . Scanalyzers . | . . . . . . . . . . . . . . Garrison Access . | . . . . . . . . . . . . . . Data Cores Recovered 1 | . . . . . . . . 1 . . . . . Used . | . . . . . . . . . . . . . . Hacking Detections 25 | . 3 . 4 . . 1 8 3 1 1 4 . . Full Trace Events 4 | . . . 1 . . . 1 1 . . 1 . . Feedback Events . | . . . . . . . . . . . . . . Feedback Blocked . | . . . . . . . . . . . . . . Robot Schematics Acquired . | . . . . . . . . . . . . . . Robots Built 1 | . . . . . . . . . . . 1 . . Authchips . | . . . . . . . . . . . . . . Time 81 | . . . . . . . . . . . 81 . . Total Robot Build Rating 1 | . . . . . . . . . . . 1 . . Part Schematics Acquired 3 | . . . . . . 1 2 . . . . . . Parts Built . | . . . . . . . . . . . . . . Authchips . | . . . . . . . . . . . . . . Time . | . . . . . . . . . . . . . . Total Part Build Rating . | . . . . . . . . . . . . . . Part Studies Acquired 5 | . . . 1 . . . 4 . . . . . . Parts Repaired 3 | . . . . . . . . . . . 3 . . Time 92 | . . . . . . . . . . . 92 . . Parts Recycled . | . . . . . . . . . . . . . . Recycled Matter . | . . . . . . . . . . . . . . Retrieved Matter . | . . . . . . . . . . . . . . Retrieved Components . | . . . . . . . . . . . . . . Parts Scanalyzed . | . . . . . . . . . . . . . . Part Schematics Acquired . | . . . . . . . . . . . . . . Parts Damaged . | . . . . . . . . . . . . . . Bothacking | -11 -10 -10 -9 -9 -9 -8 -8 -7 -6 -6 -5 -5 -5 ------------ Run | Yrd Mat Min Mat Min Exi Min Mat Fac Fac Gar Fac Upp Upp Used RIF Installer 1 | . . . . . . . . . . 1 . . . Robots Hacked 4 | . 3 . 1 . . . . . . . . . . Non-combat 4 | . 3 . 1 . . . . . . . . . . Combat . | . . . . . . . . . . . . . . Robot Hacks Applied 4 | . 3 . 1 . . . . . . . . . . no_distress 2 | . 2 . . . . . . . . . . . . find_recycling 1 | . 1 . . . . . . . . . . . . find_station 1 | . . . 1 . . . . . . . . . . Relay Couplers Released 4 | . . . . . . . . . . 4 . . . Machine Destruction 4 | . . . . . . . . . . 4 . . . Fabnet Peak Effective % . | . . . . . . . . . . . . . . Robots Rewired 1 | . . . . . . . 1 . . . . . . Allies Hacked . | . . . . . . . . . . . . . . Hacks Repelled . | . . . . . . . . . . . . . . Allies | -11 -10 -10 -9 -9 -9 -8 -8 -7 -6 -6 -5 -5 -5 -------- Run | Yrd Mat Min Mat Min Exi Min Mat Fac Fac Gar Fac Upp Upp Total Allies 6 | . . . . 3 . . 1 . . . 1 1 . Largest Group 3 | . . . . 3 2 2 1 1 . . 1 1 . Highest-Rated Group 146 | . . . . 40 32 32 90 90 . . 10 146 . Highest-Rated Ally 146 | . . . . 16 16 16 90 90 . . 10 146 . Total Orders 3 | . . . . . . . . 3 . . . . . STAY 1 | . . . . . . . . 1 . . . . . GUARD 1 | . . . . . . . . 1 . . . . . AID 1 | . . . . . . . . 1 . . . . . Ally Attacks 35 | . . . . 17 . 7 . 11 . . . . . Total Damage 653 | . . . . 153 . 27 . 473 . . . . . Kills 7 | . . . . 3 . 1 . 3 . . . . . Allies Corrupted . | . . . . . . . . . . . . . . Allies Melted 1 | . . . . . . . . . . . 1 . . Intel | -11 -10 -10 -9 -9 -9 -8 -8 -7 -6 -6 -5 -5 -5 ------- Run | Yrd Mat Min Mat Min Exi Min Mat Fac Fac Gar Fac Upp Upp Active Infowar (turns) 1884 | 49 992 . . . . . . 766 . . 1 4 72 IFF 76 | . . . . . . . . . . . . 4 72 Terrain 767 | . . . . . . . . 766 . . 1 . . Seismic 1041 | 49 992 . . . . . . . . . . . . Robot Analysis Total 5 | . 2 . 2 . . . 1 . . . . . . Derelict Logs Recovered 7 | . . 2 . 3 . . . . . . . 1 1 Drone Launches . | . . . . . . . . . . . . . . Drone Recoveries . | . . . . . . . . . . . . . . Exploration | -11 -10 -10 -9 -9 -9 -8 -8 -7 -6 -6 -5 -5 -5 ------------- Run | Yrd Mat Min Mat Min Exi Min Mat Fac Fac Gar Fac Upp Upp Turns Passed 12287 | 122 993 332 1286 934 457 709 2779 1129 124 823 2075 448 76 Spaces Moved 6875 | 73 495 268 698 651 366 444 1240 538 67 300 1069 516 150 Core 679 | 1 . . . . . . . . . 2 10 516 150 Treads 104 | . . . . . . . . . . 104 . . . Legs . | . . . . . . . . . . . . . . Wheels 6092 | 72 495 268 698 651 366 444 1240 538 67 194 1059 . . Hover . | . . . . . . . . . . . . . . Flight . | . . . . . . . . . . . . . . Fastest Speed 50 | 50 90 105 105 115 125 110 125 160 160 160 50 50 50 Average Speed 129 | 99 98 105 120 121 125 116 151 160 170 202 139 84 50 Slowest Speed 2250 | 100 105 105 145 170 125 125 185 160 175 2250 1550 500 50 Overloaded Moves . | . . . . . . . . . . . . . . Propulsion Burnouts . | . . . . . . . . . . . . . . Robots Hopped . | . . . . . . . . . . . . . . Potential Cave-ins . | . . . . . . . . . . . . . . Cave-ins Triggered . | . . . . . . . . . . . . . . Exploration Rate (%) 48 | 5 58 58 52 99 88 75 86 13 1 37 28 66 17 Regions Visited 13 Branch Regions 6 Pre-discovered Areas 7 | . 1 1 . 3 . . 1 1 . . . . . Known Exits Taken 7 | . 1 1 . . . . 1 1 1 . 1 1 . Unknown Exits Taken 5 | 1 . . 1 1 1 1 . . . . . . . Scrap Searched 7 | . . 1 . 1 . 3 . . . . . 2 . Spaces Dug 14 | . 1 . . . . . . 2 . . 11 . . Terrain Destroyed 466 | . 1 . 6 19 . . 48 52 . 220 120 . . Melee 14 | . 1 . . . . . . 2 . . 11 . . Projectile 3 | . . . . . . . 3 . . . . . . AOE 449 | . . . 6 19 . . 45 50 . 220 109 . . Terrain Rammed . | . . . . . . . . . . . . . . Walls Destroyed . | . . . . . . . . . . . . . . Machines Disabled . | . . . . . . . . . . . . . . Actions | -11 -10 -10 -9 -9 -9 -8 -8 -7 -6 -6 -5 -5 -5 --------- Run | Yrd Mat Min Mat Min Exi Min Mat Fac Fac Gar Fac Upp Upp Total 9408 | 97 933 295 1008 730 365 590 2008 756 78 414 1457 526 151 Wait 1693 | . 375 9 187 37 . 109 625 152 . . 199 . . Move 6861 | 72 494 267 697 650 365 443 1239 537 66 298 1068 515 150 Hop . | . . . . . . . . . . . . . . Pick Up 118 | 7 11 2 21 4 . 1 27 10 4 4 26 1 . Fast Attach 31 | 6 . . 9 2 . . 2 . . 3 4 5 . Attach 48 | 1 1 1 5 3 . . 6 5 2 2 22 . . Detach 5 | . . . 1 . . . 1 1 . . 2 . . Swap 110 | . 7 4 10 4 . 8 14 19 3 15 26 . . Drop 100 | . 8 . 14 2 . 9 30 10 3 5 15 4 . Fire 335 | 11 32 11 60 28 . 20 62 19 . 17 74 1 . Melee 64 | . 5 1 3 . . . . 3 . 36 16 . . Ram 2 | . . . 1 . . . . . . . . . 1 Kick . | . . . . . . . . . . . . . . Crush . | . . . . . . . . . . . . . . Escape Stasis 34 | . . . . . . . . . . 34 . . . Rewire 7 | . . . . . . . 2 . . . 5 . . Trap . | . . . . . . . . . . . . . . Miscellaneous . | . . . . . . . . . . . . . . Route ------- -11/Scrapyard -10/Materials (discovered 3 exits: *Mat / *Min x2) -10/Mines (discovered 2 exits: *Mat / *Sub) -9/Materials -9/Mines (discovered 3 exits: *Mat x2 / *Exi) -9/Exiles -8/Mines -8/Materials (discovered 3 exits: *Fac x3) -7/Factory (discovered 2 exits: *Fac x2) -6/Factory -6/Garrison -5/Factory (discovered 4 exits: *Upp x2 / Ext x2) -5/Upper Caves -5/Upper Caves (discovered 1 exit: *Fac) History --------- Turn | Location | Event 11 | -11/Scrapyard | Discovered new exit (range 16) 123 | -11/Scrapyard | Entered Materials 315 | -10/Materials | Build established: Mutant 804 | -10/Materials | Discovered new exit (range 8) 978 | -10/Materials | Discovered new exit (range 16) 1058 | -10/Materials | Discovered new exit (range 16) 1116 | -10/Materials | Identified exit to Mines 1116 | -10/Materials | Entered Mines 1130 | -10/Mines | Core integrity fell below 50% 1156 | -10/Mines | Learned Materials machine intel 1240 | -10/Mines | Discovered new exit (range 7) 1245 | -10/Mines | Identified exit to Subcaves 1261 | -10/Mines | Found a hidden stash of uninstalled traps 1348 | -10/Mines | Learned location of Zion (-6) 1439 | -10/Mines | Discovered new exit (range 10) 1447 | -10/Mines | Identified exit to Materials 1448 | -10/Mines | Entered Materials 1448 | -9/Materials | Evolved 2 slots: Weapon x2 1449 | -9/Materials | Loaded intel: 55 machine locations 1576 | -9/Materials | Destroyed 8 combat bots 1578 | -9/Materials | Lost 6 parts (1p2n3w) 1820 | -9/Materials | Build established: Scavenger-Gunner 1879 | -9/Materials | Central database locked down 2202 | -9/Materials | Core integrity fell below 50% 2416 | -9/Materials | Discovered new exit (range 15) 2689 | -9/Materials | Build established: Gunner 2734 | -9/Materials | Entered Mines 2785 | -9/Mines | Lost 3 parts (3w) 2993 | -9/Mines | Discovered new exit (range 7) 3025 | -9/Mines | Learned location of Storage (-7) 3145 | -9/Mines | Discovered new exit (range 10) 3163 | -9/Mines | Assisted by bots powering up and referring to "LRC-V3" 3250 | -9/Mines | Learned 4 Materials zone layouts 3392 | -9/Mines | Build established: Scavenger-Gunner 3657 | -9/Mines | Deemed a non-threat by the Exiles lab entrance 3658 | -9/Mines | Discovered new exit (range 5) 3668 | -9/Mines | Entered Exiles 3668 | -9/Exiles | Found Exiles lab abandoned 3668 | -9/Exiles | Accompanied by 2 allies 4113 | -9/Exiles | Discovered new exit (range 10) 4125 | -9/Exiles | Entered Mines 4125 | -8/Mines | Accompanied by 2 allies 4283 | -8/Mines | Core integrity fell below 20% 4815 | -8/Mines | Discovered new exit (range 12) 4834 | -8/Mines | Entered Materials 4834 | -8/Materials | Evolved 2 slots: Power x1, Utility x1 4835 | -8/Materials | Identified exit to Factory 4986 | -8/Materials | Garrison activated, responded to threat 5297 | -8/Materials | Build established: Tank 5614 | -8/Materials | Discovered exit to Factory (range 9) 5732 | -8/Materials | Build established: Scavenger-Tank 6497 | -8/Materials | Build established: Tank 7178 | -8/Materials | Discovered exit to Factory (range 5) 7613 | -8/Materials | Entered Factory 7613 | -7/Factory | Accompanied by 1 ally 7613 | -7/Factory | Evolved 2 slots: Utility x2 8646 | -7/Factory | Discovered new exit (range 16) 8674 | -7/Factory | Discovered new exit (range 12) 8702 | -7/Factory | Identified exit to Factory 8742 | -7/Factory | Entered another Factory area 8742 | -6/Factory | Evolved 2 slots: Power x1, Utility x1 8865 | -6/Factory | Identified exit to Garrison 8866 | -6/Factory | Entered Garrison 9076 | -6/Garrison | Triggered checkpoint 9198 | -6/Garrison | Triggered checkpoint 9201 | -6/Garrison | Triggered checkpoint 9263 | -6/Garrison | Triggered checkpoint 9281 | -6/Garrison | Triggered checkpoint 9370 | -6/Garrison | System corruption reached 10% 9510 | -6/Garrison | Phase Generator disabled 9577 | -6/Garrison | Installed Relay Interface Framework 9677 | -6/Garrison | Discovered new exit (range 5) 9684 | -6/Garrison | Identified exit to Factory 9689 | -6/Garrison | Entered Factory 9689 | -5/Factory | Evolved 2 slots: Propulsion x2 9750 | -5/Factory | Repaired Rocket Launcher 9789 | -5/Factory | Repaired Deuterium Engine 10312 | -5/Factory | Repaired Imp. Cooling System 10682 | -5/Factory | Cargo convoy interrupted 10741 | -5/Factory | Fabricated A-02 Transporter (x1) 10920 | -5/Factory | System corruption reached 10% 10923 | -5/Factory | Lost 3 parts (1n1u1w) 11189 | -5/Factory | First assault squad dispatched 11267 | -5/Factory | Build established: Scavenger-Gunner 11299 | -5/Factory | Identified exit to Upper Caves 11299 | -5/Factory | Identified exit to Extension 11397 | -5/Factory | Lost 4 parts (2p2w) 11579 | -5/Factory | Lost 3 parts (3w) 11621 | -5/Factory | System corruption reached 30% 11717 | -5/Factory | Lost 8 parts (2p1n1u4w) 11764 | -5/Factory | Core integrity fell below 50% 11764 | -5/Factory | Entered Upper Caves 11790 | -5/Upper Caves | Lost 8 parts (3p1n3u1w) 12025 | -5/Upper Caves | Build established: Mutant 12095 | -5/Upper Caves | Core integrity fell below 20% 12132 | -5/Upper Caves | Learned Factory garrison access intel 12161 | -5/Upper Caves | Attracted the attention of an 0b10 outpost 12197 | -5/Upper Caves | Encountered a Warlord checkpoint 12199 | -5/Upper Caves | Discovered new exit (range 9) 12205 | -5/Upper Caves | Identified exit to Upper Caves 12212 | -5/Upper Caves | Entered another Upper Caves area 12222 | -5/Upper Caves | Discovered new exit (range 15) 12240 | -5/Upper Caves | Learned Factory terminal intel 12271 | -5/Upper Caves | Identified exit to Factory 12288 | -5/Upper Caves | Attracted the attention of an 0b10 checkpoint 12288 | -5/Upper Caves | Destroyed by Y-64 Sentinel with Wave Gun Last Messages --------------- 12203_ Found Imp. Light Armor Plating. 12203_ Found IFF Parser. 12203_ Found 69 Matter. 12204_ Acquired 69 matter. 12205_ EXIT=IDENTIFIED: UPPER CAVES 12207_ System corrupted: Energy discharge (-22). 12208_ Acquired IFF Parser. LOCATION=UPPER CAVES GOAL=ESCAPE 12222_ EXIT=FOUND 12240_ Acquired derelict log, extracted data. Data stored: Factory terminal intel. 12247_ System corrupted: Component data lost. 12271_ EXIT=IDENTIFIED: FACTORY 12280_ System corrupted: Component data lost. 12284_ Adv. Heat Sink destroyed. 12284_ Penetrated by Slug. 12284_ IFF Parser destroyed. 12288_ Y-64 Sentinel: "INTERCEPTING UNREGISTERED DERELICT." 12288_ Acquired 2 matter. Map ----- +----------------------------------------------------+ | ??????????????????? #???????????# | | ??????????????????? ?????####### ##### | | ??????????????????? #???## | | ??????????????????? ????######## # #????## | | ???????????????????? ###????????# ## #?????## | | ???????????????????? #????????# ### ##??????# | | ???????????????????? #??????### #?###???????## | | ????????????????????# #?????## #????????????## | | ????????????????????# #?##### #?????????????# | | ????????????????????# ### ##?????????????? | | ????????????????????# ## ###??????????????# | | ???????????????????## # #########????????????# | | ???????????????????# # ###???# ???????????# | | ???????????????????# ####??# ???????????# | | ???????????????????# #? ## ??????????? | | ???????????????????#### ??????????# | | ??????????????????????## ??????????# | | ???????????????????????## #?????????## | | ?????????????????????????## Y #????????## | | ???????????????????????????# #????##### | | ???????????????????????????# ????## | | ???????????????????????????# #????# | | ???????????#####??????????## ## ?????## | | ?????????? ?????## #?# ???????#### | | ?????????? ### #???# #??????????# | | ?????????????????# !@ ##### ###??#####?# | | ?????????????????# ! s #### ### | | ????????????????# S ## | | ????????????????# ###### | | ????????????????## ## ##????# | | ?????????????????##??#### #????# ## | | ????????????????????????## #????#### ### | | ?????????????????????????###???????## #########?? | | ????????????????????????????????????####?????????? | | ?????????????????????????????????????????????????? | | ?????????????????????????????????????????????????? | | ?????????????????????????????????????????????????? | | ?????????????????????????????????????????????????? | | ?????????????????????????????????????????????????? | | ?????????????????????????????????????????????????? | | ?????????????????????????????????????????????????? | | ?????????????????????????????????????????????????? | | ?????????????????????????????????????????????????? | | ?????????????????????????????????????????????????? | | ?????????????????????????????????????????????????? | | ?????????????????????????????????????????????????? | | ?????????????????????????????????????????????????? | | ?????????????????????????????????????????????????? | | ?????????????????????????????????????????????????? | | | +----------------------------------------------------+ Best States ------------- Heat Dissipation 86 Coolant Potential 65 Energy Generation 47 Energy Capacity 510 Matter Stores 300 Matter Capacity 300 Sight Range 16 Terrain Scan Range 16 Terrain Scan Density 10 Armor Coverage 600 Resistance: KI 20 Resistance: EM 25 Evasion (%) 50 Target Analysis 6 Recoil Reduction 2 Item Schematics ----------------- Plasma Cutter | -8/Mines | Hacked Hacking Suite | -8/Materials | Hacked System Shield | -8/Materials | Hacked Robot Schematics ------------------ None Fabricated ------------ A-02 Transporter | x1 | -5/Factory | Preloaded Repaired ---------- Rocket Launcher | 2% | -5/Factory Deuterium Engine | 29% | -5/Factory Imp. Cooling System | 68% | -5/Factory Studied --------- Com. Wheel | -9/Materials | Hacked Wheel | -8/Materials | Hacked Imp. Datajack | -8/Materials | Hacked EM Pulse Cannon | -8/Materials | Hacked Lgt. EM Pulse Cannon | -8/Materials | Hacked Alien Tech Used ----------------- None Achievements -------------- Preemptive Strike Quantum Hacking Challenges ------------ None Game ------ Seed MomentumXenonWall Manual? 0 Play Time 01:37:30 Cumulative 75.2 hours Start 2026.02.16 @ 12:05:36 End 2026.02.16 @ 13:44:58 Sessions 1 Manual Loads 0 Difficulty Rogue Special Mode None Game No. 156 Rogue 156 Adventurer 0 Explorer 0 Win Type - Total 1 Types 1/0/0/0/0/0/0/0/0/0 Lore% 49 Gallery% 37 Achievement% 36 Wizard Run 0 Options --------- Layout 0 ASCII 0 Keyboard 1 Movement Arrows Keybinds 0 Fullscreen 1 Font 18/Smallcaps Map View 76x50 Zoom Use 38% Tactical HUD 1 Map Filters NONE Filters NONE Steam 1 RUN: 37a73dfb-14c2-4128-b7ec-cf8d8df1bfb4